bitfinex-derivatives/quotes_ETHF0:USTF0_20241104
["timestamp","ask_amount","ask_price","bid_price","bid_amount"]
[1730730877166,41.20816,2451.4,2451.2,0.40818]
[1730730877371,40.8,2451.4,2450.8,3.2078]
[1730730877572,40.8,2451.4,2450.7,1.88895]
[1730730877767,0.40819,2451.2,2451.0,0.40821]
[1730730878170,0.40819,2451.2,2451.0,0.4082]
[1730730878369,40.8,2451.4,2451.1,3.2078]
[1730730878668,3.2078,2451.7,2451.0,3.2078]
[1730730878868,3.2078,2451.7,2450.7,0.8683]
[1730730878869,3.2078,2451.7,2451.3,3.2078]
[1730730879171,0.40809,2451.8,2451.6,0.40812]
[1730730879379,4.34396801,2451.9,2451.6,0.40811]
[1730730879677,4.34396801,2451.9,2451.4,0.9033]
[1730730879678,3.2078,2452.0,2451.4,0.9033]
[1730730879970,0.40813,2451.5,2451.4,0.9033]
[1730730880166,0.40813,2451.5,2451.4,0.4442]
[1730730880368,3.91686801,2451.6,2451.1,3.6559]
[1730730880569,3.91686801,2451.6,2451.1,0.8923]
[1730730880776,0.40818,2451.2,2451.1,0.8923]
[1730730881084,4.93717801,2451.6,2451.2,0.40818]
[1730730881085,0.40815,2451.4,2451.2,0.40818]
[1730730881374,0.40818,2451.3,2451.1,1.30048]
[1730730881573,4.93717801,2451.6,2451.1,0.8923]
[1730730881574,3.91686801,2451.6,2451.1,0.8923]
[1730730881779,3.91686801,2451.6,2451.1,4.1001]
[1730730882078,0.40817,2451.4,2451.2,0.40818]
[1730730882376,0.40816,2451.4,2451.2,0.40818]
[1730730882671,4.37266801,2451.6,2451.3,0.40816]
[1730730882878,4.37266801,2451.6,2451.2,3.2078]
[1730730883177,0.40814,2451.5,2451.3,0.40815]
[1730730883566,0.40812,2451.6,2451.3,0.40817]
[1730730883767,3.6159,2451.7,2451.3,3.2078]
[1730730883968,44.71686801,2451.9,2451.3,3.2078]
[1730730883969,40.8,2451.9,2451.3,3.2078]
[1730730884278,0.40809,2451.8,2451.6,0.40811]
[1730730884480,0.40809,2451.8,2451.6,0.4081]
[1730730884678,0.40806,2452.0,2451.9,0.40806]
[1730730884976,0.40809,2451.8,2451.6,3.2078]
[1730730885173,0.4081,2451.7,2451.6,3.6159]
[1730730885376,40.8,2451.8,2451.6,3.2078]
[1730730885572,0.4081,2451.7,2451.6,3.2078]
[1730730885774,0.4081,2451.7,2451.1,1.9128]
[1730730885775,0.40815,2451.5,2451.1,0.8923]
[1730730886081,41.82024,2451.8,2451.1,0.8923]
[1730730886082,41.2634,2451.8,2451.4,0.40814]
[1730730886273,0.40816,2451.4,2451.3,0.40816]
[1730730886877,42.28363,2451.8,2451.4,0.40814]
[1730730886878,0.40814,2451.5,2451.4,0.40814]
[1730730887077,0.40814,2451.5,2451.3,0.40816]
[1730730887280,42.28363,2451.8,2451.1,0.8923]
[1730730887475,42.28363,2451.8,2451.2,3.2078]
[1730730887680,42.28363,2451.8,2451.1,0.8923]
[1730730887681,1.02031,2451.6,2451.1,0.8923]
[1730730887975,0.40817,2451.3,2451.1,1.30048]
[1730730888177,0.40814,2451.5,2451.3,0.40815]
[1730730888372,3.2078,2451.6,2451.3,0.40815]
[1730730888572,3.2078,2451.6,2451.4,0.40814]
[1730730888573,0.40814,2451.5,2451.4,0.40814]
[1730730888972,4.48734,2451.5,2451.3,0.40815]
[1730730889174,0.40816,2451.4,2451.2,3.61597]
[1730730889779,0.40816,2451.4,2451.3,0.40816]
[1730730889780,0.40815,2451.4,2451.3,0.40816]
[1730730889981,0.40814,2451.5,2451.4,0.40815]
[1730730890181,0.40814,2451.5,2451.2,3.2078]
[1730730890182,3.2078,2451.6,2451.2,3.2078]
[1730730890375,0.40814,2451.5,2451.2,3.2078]
[1730730890678,3.61592,2451.6,2451.5,0.40813]
[1730730890884,0.40811,2451.7,2451.3,0.40817]
[1730730891070,41.2634,2451.8,2451.5,0.40813]
[1730730891071,0.40813,2451.6,2451.5,0.40813]
[1730730891278,41.2634,2451.8,2451.2,3.2078]
[1730730891577,0.40811,2451.7,2451.6,0.40811]
[1730730891984,40.8,2451.8,2451.6,4.0792]
[1730730892185,0.40802,2452.2,2452.1,0.40802]
[1730730892480,1.1016,2452.6,2452.1,3.2078]
[1730730892673,0.40801,2452.3,2452.2,0.40801]
[1730730892869,4.48561,2452.3,2452.2,0.40801]
[1730730893077,4.48561,2452.3,2452.2,0.40802]
[1730730893276,40.8,2452.5,2452.2,0.40802]
[1730730893472,0.408,2452.3,2452.2,0.40802]
[1730730893678,40.8,2452.5,2452.1,3.2078]
[1730730893679,0.40802,2452.2,2452.1,3.2078]
[1730730893881,3.2078,2452.4,2451.7,1.3026]
[1730730894186,0.40804,2452.1,2452.0,0.40805]
[1730730894375,1.02005,2452.2,2451.7,4.0782]
[1730730894679,1.02005,2452.2,2451.8,0.40807]
[1730730894680,0.40806,2452.0,2451.8,0.40807]
[1730730894885,0.40807,2451.9,2451.8,0.40807]
[1730730895072,0.40807,2451.9,2451.7,0.8704]
[1730730895073,0.4207,2452.2,2451.7,4.0782]
[1730730895483,4.35076801,2452.3,2452.0,0.40805]
[1730730895484,0.40804,2452.1,2452.0,0.40805]
[1730730895672,4.35076801,2452.3,2452.1,0.40803]
[1730730895673,0.40802,2452.2,2452.1,0.40803]
[1730730896090,0.4339,2452.3,2451.8,0.40808]
[1730730896091,0.84191,2452.3,2451.8,0.40808]
[1730730896378,0.84191,2452.3,2452.1,0.40802]
[1730730896379,0.40802,2452.2,2452.1,0.40802]
[1730730896581,0.4339,2452.3,2451.7,5.09845]
[1730730896779,3.61579,2452.4,2452.3,0.408]
[1730730896983,0.40803,2452.2,2452.1,0.40802]
[1730730897277,0.40801,2452.3,2452.2,0.408]
[1730730897677,4.0776,2452.3,2452.2,0.408]
[1730730898080,3.2078,2452.4,2452.0,1.02012]
[1730730898280,41.20798,2452.5,2452.4,0.40798]
[1730730898784,44.8776,2452.5,2452.4,0.40798]
[1730730899187,0.408,2452.4,2452.3,0.40799]
[1730730899389,0.40801,2452.3,2452.2,0.408]
[1730730900279,0.408,2452.4,2452.3,0.40799]
[1730730900483,40.8,2452.5,2452.1,3.2078]
[1730730900689,0.40804,2452.2,2452.1,0.40803]
[1730730900877,41.81994,2452.5,2452.0,0.40803]
[1730730900878,0.40804,2452.1,2452.0,0.40803]
[1730730901084,0.40801,2452.3,2452.2,0.40801]
[1730730901276,0.40804,2452.1,2452.0,0.40804]
[1730730904390,0.40808,2451.8,2451.7,0.8474]
[1730730904691,0.4081,2451.7,2451.6,3.2078]
[1730730904987,4.0792,2451.7,2451.2,1.97366051]
[1730730905190,4.0792,2451.7,2451.3,0.95474995]
[1730730905191,0.40817,2451.4,2451.3,0.95474995]
[1730730905384,0.40817,2451.4,2451.1,1.06096051]
[1730730905587,0.40817,2451.4,2451.0,5.20744077]
[1730730905588,0.40817,2451.4,2450.9,0.4348]
[1730730905882,0.40819,2451.2,2451.1,0.40819]
[1730730906087,8.14502801,2451.5,2451.0,3.2078]
[1730730906283,8.14502801,2451.5,2450.9,0.4348]
[1730730906284,0.40822,2451.0,2450.9,0.84303]
[1730730906479,41.20822,2451.0,2450.9,0.84303]
[1730730906682,41.20822,2451.0,2450.9,0.4348]
[1730730906881,41.20822,2451.0,2450.9,0.84303]
[1730730906882,40.8,2451.0,2450.9,0.84303]
[1730730907091,1.46939,2451.4,2450.9,0.4348]
[1730730907285,1.46939,2451.4,2451.1,0.4082]
[1730730907286,0.40819,2451.2,2451.1,0.4082]
[1730730907585,40.8,2451.2,2451.1,0.4082]
[1730730907792,0.40813,2451.6,2451.1,7.2878]
[1730730907996,3.2078,2451.8,2451.1,7.2878]
[1730730907997,3.2078,2451.8,2451.2,0.4367]
[1730730908183,4.65251,2452.1,2451.2,4.1005]
[1730730908382,4.65251,2452.1,2451.7,0.40809]
[1730730908383,0.40809,2451.8,2451.7,0.40809]
[1730730908786,3.6324,2452.1,2451.5,0.4489]
[1730730908981,3.6324,2452.1,2451.6,1.02029]
[1730730908982,3.2078,2452.1,2451.6,1.02029]
[1730730909181,3.2078,2452.1,2451.5,0.4489]
[1730730909381,0.40807,2451.9,2451.6,0.40812]
[1730730909683,0.40805,2452.1,2451.7,1.02026]
[1730730909883,3.2078,2452.4,2451.9,3.2078]
[1730730910080,3.2078,2452.4,2451.8,0.8791]
[1730730910287,0.408,2452.3,2452.0,3.2078]
[1730730910599,0.40801,2452.3,2452.2,0.40801]
[1730730911086,3.2078,2452.7,2452.1,0.4489]
[1730730911286,44.0078,2453.0,2452.3,3.2078]
[1730730911482,44.0078,2453.0,2452.4,1.00569336]
[1730730911678,4.93662801,2452.9,2452.4,0.4588]
[1730730912083,4.93662801,2452.9,2452.2,1.06096051]
[1730730912084,0.40798,2452.4,2452.3,3.2078]
[1730730912289,40.8,2452.4,2452.3,3.6158]
[1730730913796,3.2078,2453.0,2452.3,7.6934]
[1730730913998,0.40791,2452.9,2452.7,0.40792]
[1730730914194,0.40791,2452.9,2452.8,0.84882]
[1730730914498,0.4079,2452.9,2452.8,0.84882]
[1730730914996,3.2078,2453.4,2452.8,4.5177]
[1730730915288,1.64467721,2453.5,2453.3,0.40782]
[1730730915289,0.48374,2453.5,2453.3,0.40782]
[1730730915490,0.48374,2453.5,2453.1,3.2078]
[1730730915491,0.40785,2453.2,2453.1,3.2078]
[1730730915692,0.40785,2453.2,2453.0,0.40788]
[1730730916094,0.07594,2453.5,2452.9,3.6694]
[1730730916295,0.07594,2453.5,2453.3,3.2078]
[1730730916493,0.48375,2453.5,2453.3,0.40783]
[1730730916692,0.48375,2453.5,2453.2,0.40784]
[1730730916693,0.40782,2453.4,2453.2,0.40784]
[1730730916895,0.48375,2453.5,2453.3,0.40783]
[1730730917093,0.07594,2453.5,2453.4,0.40782]
[1730730917297,0.07594,2453.5,2453.4,3.61562]
[1730730917893,1.45224,2454.2,2453.4,3.61562]
[1730730917894,0.40764,2454.5,2454.2,0.40767]
[1730730918101,3.2078,2454.8,2454.2,7.12466801]
[1730730918392,0.40763,2454.6,2454.3,0.84156]
[1730730918894,0.40762,2454.6,2454.3,0.84156]
[1730730919089,40.8,2454.7,2454.3,0.4339]
[1730730919400,0.40763,2454.6,2454.3,0.84157]
[1730730919584,41.20761,2454.7,2454.4,0.40764]
[1730730919792,40.8,2454.7,2454.5,3.2078]
[1730730919985,40.8,2454.7,2454.6,0.40762]
[1730730920196,40.8,2454.7,2454.6,4.48122]
[1730730920596,40.8,2454.7,2454.5,3.61543]
[1730730920892,40.8,2454.7,2454.5,3.2078]
[1730730921194,40.8,2454.7,2454.6,7.99046801]
[1730730921390,3.4128,2455.6,2454.6,10.22869801]
[1730730921591,0.40747,2455.5,2455.2,0.40751]
[1730730921794,0.40747,2455.5,2455.2,4.32437801]
[1730730921991,0.40748,2455.5,2455.2,4.32437801]
[1730730922295,0.40743,2455.8,2455.5,0.40745]
[1730730922487,3.2078,2455.9,2455.2,3.91686801]
[1730730922689,0.4322,2456.4,2455.5,3.91686801]
[1730730922998,40.8,2455.8,2455.7,0.40743]
[1730730923188,1.0181,2456.9,2455.7,7.2798]
[1730730923387,1.0181,2456.9,2456.1,0.40736]
[1730730923589,3.2078,2456.7,2456.0,3.61518]
[1730730923892,0.40735,2456.2,2456.0,3.2078]
[1730730924096,0.40734,2456.3,2456.0,3.61518]
[1730730924397,40.8,2456.6,2456.0,3.2078]
[1730730924595,0.4073,2456.5,2456.2,0.40735]
[1730730924898,41.20729,2456.6,2456.2,0.40734]
[1730730925197,41.20729,2456.6,2456.1,3.91686801]
[1730730925198,40.8,2456.6,2456.3,3.2078]
[1730730925498,40.8,2456.6,2456.3,7.12466801]
[1730730925691,40.8,2456.6,2456.5,0.4073]
[1730730926196,40.8,2456.6,2456.5,4.4777]
[1730730926693,0.40719,2457.2,2456.8,0.40725]
[1730730926995,3.2078,2457.4,2456.6,3.2078]
[1730730927297,3.2078,2457.4,2456.4,2.5114]
[1730730927298,0.40727,2456.7,2456.4,2.084]
[1730730927491,44.0078,2457.1,2456.3,3.2078]
[1730730928090,3.2078,2456.5,2455.9,3.6352]
[1730730928595,0.40737,2456.1,2455.8,4.32428801]
[1730730928796,1.01818,2456.7,2455.6,3.2078]
[1730730928797,3.2078,2456.2,2455.6,3.2078]
[1730730929092,3.2078,2456.2,2455.4,2.171]
[1730730929093,0.40745,2455.7,2455.3,4.32436801]
[1730730929296,3.2078,2455.9,2455.3,3.91686801]
[1730730929297,0.40746,2455.6,2455.3,3.91686801]
[1730730929596,3.2078,2455.9,2455.2,0.84561]
[1730730929802,0.40746,2455.6,2455.3,0.4075]
[1730730930595,0.40743,2455.8,2455.4,0.40747]
[1730730930799,3.2078,2455.9,2455.6,0.40744]
[1730730931090,3.2078,2455.9,2455.2,3.6459]
[1730730931289,3.2078,2455.9,2455.2,0.84561]
[1730730931502,3.61526,2455.6,2455.3,0.4075]
[1730730931799,3.2078,2455.6,2455.0,3.91686801]
[1730730932696,3.2078,2455.6,2455.3,0.4075]
[1730730932697,40.8,2455.5,2455.3,0.4075]
[1730730933099,41.20748,2455.5,2455.2,0.40751]
[1730730933301,40.8,2455.5,2455.4,0.40748]
[1730730933611,0.4285,2456.2,2455.5,0.40745]
[1730730933612,3.61522,2455.9,2455.5,0.40745]
[1730730933811,3.2078,2455.9,2455.2,7.12466801]
[1730730934108,3.2078,2455.9,2455.2,3.61531]
[1730730934109,0.40748,2455.5,2455.2,3.61531]
[1730730934294,0.40748,2455.5,2454.7,4.36876801]
[1730730934295,3.2078,2455.5,2454.7,4.36876801]
[1730730934500,3.2078,2455.2,2454.6,3.6264]
[1730730934697,0.40753,2455.1,2454.7,0.4076]
[1730730934897,3.2078,2455.2,2454.6,3.6264]
[1730730935098,40.8,2455.4,2454.6,3.6264]
[1730730935399,0.40753,2455.1,2454.8,0.40758]
[1730730935607,0.4075,2455.3,2454.9,0.40755]
[1730730935905,0.40754,2455.1,2454.8,0.40758]
[1730730936295,3.2078,2455.2,2454.6,4.0528]
[1730730936501,0.40755,2455.0,2454.7,0.40759]
[1730730936797,0.40759,2454.8,2454.6,3.6342]
[1730730937005,0.40754,2455.1,2454.6,3.6342]
[1730730937196,3.2078,2455.2,2454.6,3.6342]
[1730730937390,40.8,2455.4,2454.7,3.91686801]
[1730730937594,3.91686801,2456.0,2454.7,3.91686801]
[1730730937595,0.205,2456.1,2455.3,3.91686801]
[1730730937796,4.12186801,2457.2,2454.8,0.07]
[1730730937797,0.205,2456.8,2456.2,0.40735]
[1730730937996,0.40732,2456.4,2456.2,3.91686801]
[1730730938204,0.40732,2456.4,2455.8,3.2078]
[1730730938205,4.22596,2456.8,2456.0,3.91686801]
[1730730938401,4.22596,2456.8,2456.1,0.40736]
[1730730938402,0.40732,2456.5,2456.1,0.40736]
[1730730938708,0.40732,2456.4,2455.8,0.40741]
[1730730938902,3.2078,2456.5,2455.7,3.91686801]
[1730730939304,0.40736,2456.2,2455.9,0.4074]
[1730730940005,3.61516,2456.2,2455.9,0.4074]
[1730730940403,0.40737,2456.1,2455.9,0.4074]
[1730730940809,3.2078,2456.2,2456.0,4.40131641]
[1730730941112,3.2078,2456.9,2456.1,1.01843]
[1730730941310,3.2078,2456.9,2456.3,0.40733]
[1730730941614,0.40729,2456.6,2456.0,5.41978641]
[1730730941818,3.61509,2456.6,2456.4,0.40731]
[1730730942510,0.4525,2457.3,2456.5,4.4785]
[1730730942700,3.2078,2457.4,2456.7,4.40131641]
[1730730942906,0.40718,2457.3,2457.1,0.4072]
[1730730943105,3.2078,2457.4,2456.7,7.60911641]
[1730730943306,41.81778,2457.7,2456.6,0.4405]
[1730730943307,3.2078,2457.1,2456.6,0.4405]
[1730730943712,3.61501,2457.1,2456.9,0.40722]
[1730730943912,41.81777,2457.7,2456.9,0.40722]
[1730730943913,40.8,2457.7,2456.9,3.2078]
[1730730944213,0.40713,2457.6,2457.4,0.40714]
[1730730944423,3.2078,2457.9,2457.5,4.40131641]
[1730730944611,0.40709,2457.8,2457.4,0.40714]
[1730730944817,3.2078,2457.9,2457.4,0.40714]
[1730730945005,3.2078,2457.6,2457.2,4.40131641]
[1730730945207,3.2078,2457.9,2457.2,4.40131641]
[1730730945517,41.2071,2457.8,2457.6,0.40712]
[1730730946014,0.4071,2457.7,2457.5,0.40712]
[1730730946409,40.8,2457.8,2457.2,7.60911641]
[1730730946610,3.61493,2457.6,2457.4,0.40715]
[1730730946816,3.61493,2457.6,2457.2,4.40131641]
[1730730946817,0.40716,2457.4,2457.2,0.40718]
[1730730947118,3.2078,2457.6,2456.9,3.2078]
[1730730947119,3.61493,2457.6,2456.9,3.2078]
[1730730947411,0.40714,2457.5,2457.2,0.40718]
[1730730947612,0.40714,2457.5,2456.9,4.22588]
[1730730947613,3.61497,2457.3,2456.9,3.2078]
[1730730947814,0.40722,2457.0,2456.9,3.2078]
[1730730948013,0.40724,2456.9,2456.6,0.40727]
[1730730948208,0.40724,2456.9,2456.7,0.40726]
[1730730948409,0.40724,2456.9,2456.5,0.40729]
[1730730948606,0.40727,2456.8,2456.5,0.40729]
[1730730948811,0.40727,2456.8,2456.4,0.4535]
[1730730949013,0.40728,2456.7,2456.5,0.4073]
[1730730949315,0.9158,2457.4,2456.5,0.4073]
[1730730949316,0.40721,2457.1,2456.5,16.15604843]
[1730730949614,0.40721,2457.1,2456.9,0.40723]
[1730730950115,3.2078,2457.3,2456.9,0.40723]
[1730730950317,0.4072,2457.2,2456.5,8.62735641]
[1730730950518,0.40716,2457.4,2456.6,1.01822]
[1730730950717,3.2078,2457.6,2456.8,3.2078]
[1730730950921,3.61493,2457.6,2457.4,0.40715]
[1730730951315,3.61493,2457.6,2456.9,1.44318]
[1730730951316,0.40714,2457.5,2457.3,0.40716]
[1730730952013,3.2078,2457.6,2457.2,0.40717]
[1730730952014,0.40715,2457.4,2457.2,0.40717]
[1730730952216,3.2078,2457.3,2456.9,0.4251]
[1730730952407,0.40722,2457.1,2456.9,0.83233]
[1730730952606,3.61503,2457.0,2456.8,0.40724]
[1730730952912,3.2078,2457.0,2456.4,0.435]
[1730730953311,3.2078,2456.7,2456.4,0.435]
[1730730953516,3.2078,2456.7,2456.2,0.40734]
[1730730953517,0.40732,2456.4,2456.2,0.40734]
[1730730953816,0.40734,2456.3,2456.1,0.40736]
[1730730954215,3.2078,2456.4,2455.8,0.4489]
[1730730954411,0.40735,2456.3,2456.0,0.40737]
[1730730954611,0.40736,2456.2,2456.0,0.40737]
[1730730955217,3.2078,2456.4,2455.8,0.4489]
[1730730955414,3.2078,2456.4,2456.1,0.40736]
[1730730955415,0.40734,2456.3,2456.1,0.40736]
[1730730955621,0.40736,2456.2,2456.0,0.40737]
[1730730955910,0.40736,2456.2,2456.0,0.40738]
[1730730956115,3.2078,2456.4,2455.9,0.40739]
[1730730956116,0.40737,2456.1,2455.9,0.40739]
[1730730956320,3.2078,2456.4,2455.9,0.40739]
[1730730956524,1.01835,2456.3,2455.6,3.6428]
[1730730956726,0.40738,2456.1,2455.9,0.4074]
[1730730956927,0.40739,2456.0,2455.8,0.40741]
[1730730957118,3.2078,2456.4,2455.6,3.6428]
[1730730957319,3.61517,2456.1,2455.9,0.40739]
[1730730957519,0.4074,2456.0,2455.8,0.40741]
[1730730957823,0.4074,2455.9,2455.6,0.435]
[1730730958015,0.4074,2455.9,2455.7,0.40742]
[1730730958016,0.40741,2455.9,2455.7,0.40742]
[1730730958618,0.40742,2455.8,2455.6,0.84244]
[1730730958819,3.61472304,2456.1,2455.3,3.6401]
[1730730959023,0.40744,2455.7,2455.5,0.40746]
[1730730959217,0.40742,2455.9,2455.7,0.40743]
[1730730959417,0.40739,2456.0,2455.8,0.40741]
[1730730959822,0.40739,2456.0,2455.3,4.65884]
[1730730959823,0.40741,2455.9,2455.7,0.40742]
[1730730960025,40.8,2455.8,2455.7,0.40743]
[1730730960420,40.8,2455.8,2455.7,4.47943]
[1730730961027,0.4225,2456.3,2455.7,4.072]
[1730730961229,3.2078,2456.7,2456.1,5.41974641]
[1730730961530,44.0078,2456.7,2456.2,0.54973049]
[1730730961728,0.40733,2456.4,2456.2,0.40735]
[1730730961924,44.0078,2456.7,2455.9,3.2078]
[1730730962224,44.0078,2456.7,2456.0,1.83900276]
[1730730962225,0.40737,2456.1,2456.0,1.83900276]
[1730730962629,0.40737,2456.1,2456.0,1.83977398]
[1730730962927,0.40737,2456.1,2456.0,1.83978349]
[1730730963124,0.40737,2456.1,2456.0,1.43331629]
[1730730963427,0.40737,2456.1,2455.5,5.71176852]
[1730730963428,7.279,2456.1,2455.4,1.05629102]
[1730730963732,3.2078,2455.5,2455.2,1.05629102]
[1730730963925,0.4075,2455.4,2455.2,0.40751]
[1730730964126,3.2078,2455.5,2455.1,1.05629102]
[1730730964319,3.61533,2455.2,2455.1,1.46805896]
[1730730964519,3.61533,2455.2,2455.1,1.93705744]
[1730730964520,3.2078,2455.2,2455.1,1.93705744]
[1730730964724,3.2078,2455.2,2454.9,0.02667]
[1730730964725,7.2806,2455.2,2454.9,0.02667]
[1730730964928,0.40755,2455.0,2454.9,0.02667]
[1730730966126,0.40755,2455.0,2454.9,0.43424]
[1730730966329,3.2078,2455.2,2454.9,0.02667]
[1730730966533,0.40755,2455.1,2455.0,0.40755]
[1730730966727,41.20755,2455.1,2455.0,0.40755]
[1730730966937,40.8,2455.1,2455.0,0.40755]
[1730730968233,3.2078,2455.2,2455.1,0.40753]
[1730730968435,0.4075,2455.3,2455.2,0.40751]
[1730730968732,40.8,2455.5,2454.9,1.06052896]
[1730730969038,0.40747,2455.5,2455.4,0.40748]
[1730730969233,3.61526,2455.6,2455.4,0.40748]
[1730730969431,44.41526,2455.6,2455.4,0.40748]
[1730730969731,44.41526,2455.6,2455.0,2.51640896]
[1730730969732,0.40745,2455.7,2455.1,3.2078]
[1730730969931,3.2078,2455.9,2455.1,4.26832896]
[1730730970136,3.2078,2455.9,2455.2,1.06052896]
[1730730970438,0.40744,2455.7,2455.6,0.40745]
[1730730970832,0.40746,2455.6,2455.5,0.40746]
[1730730971233,40.8,2455.8,2455.5,0.40746]
[1730730971430,0.40746,2455.6,2455.4,0.40748]
[1730730971741,0.40749,2455.4,2455.3,0.4075]
[1730730971927,0.40749,2455.4,2455.1,3.2078]
[1730730972132,0.40749,2455.4,2455.2,0.40751]
[1730730972436,3.2078,2455.6,2455.1,3.2078]
[1730730972625,0.40744,2455.7,2455.2,1.0188]
[1730730973023,0.40747,2455.5,2455.2,0.40751]
[1730730973340,0.40749,2455.4,2455.2,0.40751]
[1730730973638,3.2078,2455.6,2455.2,0.40752]
[1730730973840,0.40752,2455.3,2455.1,0.40753]
[1730730974132,0.40749,2455.4,2455.2,0.40751]
[1730730974333,0.40748,2455.5,2455.3,0.4075]
[1730730974527,0.40747,2455.5,2455.3,0.4075]
[1730730974727,3.2078,2455.6,2455.3,0.4075]
[1730730974728,0.40749,2455.4,2455.3,0.4075]
[1730730974928,0.40749,2455.4,2455.0,3.6448]
[1730730974929,0.40747,2455.5,2455.0,4.66367]
[1730730975130,3.2078,2455.6,2455.0,4.66367]
[1730730975327,3.2078,2455.6,2455.4,0.40747]
[1730730975535,0.4075,2455.4,2455.0,3.6448]
[1730730975727,3.2078,2455.6,2455.3,0.4075]
[1730730975926,0.40748,2455.4,2455.3,0.4075]
[1730730976140,0.40748,2455.4,2455.0,4.66367]
[1730730976141,0.4075,2455.3,2455.2,0.40751]
[1730730976329,0.40753,2455.1,2455.0,3.2078]
[1730730976530,0.40754,2455.1,2455.0,0.40755]
[1730730976744,3.2078,2455.3,2455.0,0.40755]
[1730730976929,0.40753,2455.2,2454.8,0.4356]
[1730730977125,0.40753,2455.2,2455.1,0.40753]
[1730730977329,0.40753,2455.2,2455.0,0.40754]
[1730730977535,0.40751,2455.3,2454.8,1.45455]
[1730730977730,40.8,2455.5,2455.3,0.4075]
[1730730977932,40.8,2455.5,2454.9,4.22673]
[1730730978236,0.4075,2455.3,2455.0,0.40755]
[1730730978441,0.4075,2455.3,2455.2,0.40752]
[1730730978638,40.8,2455.5,2454.9,1.01893]
[1730730978939,0.40751,2455.3,2455.2,0.4075]
[1730730979128,0.40749,2455.4,2455.3,0.40748]
[1730730979534,0.40749,2455.4,2454.9,4.22673]
[1730730979535,0.40751,2455.3,2455.2,0.40751]
[1730730980038,40.8,2455.5,2455.4,0.40748]
[1730730980238,3.2078,2456.0,2455.3,4.5169]
[1730730980445,0.40735,2456.2,2456.1,0.40736]
[1730730981042,0.40739,2456.0,2455.9,0.40738]
[1730730981437,0.40742,2455.9,2455.8,0.40741]
[1730730981834,44.0078,2456.3,2455.6,0.4497]
[1730730981835,1.01844,2456.1,2455.6,0.4497]
[1730730982039,44.0078,2456.3,2455.8,0.40741]
[1730730982040,0.40741,2455.9,2455.8,0.40741]
[1730730984035,0.4074,2456.0,2455.9,0.4074]
[1730730984231,45.02617,2456.3,2455.6,0.4497]
[1730730984429,45.02617,2456.3,2455.8,0.40741]
[1730730984633,45.02617,2456.3,2455.6,0.4497]
[1730730984828,1.01839,2456.2,2455.6,0.4497]
[1730730985041,0.40741,2455.9,2455.8,0.40741]
[1730730985738,45.02617,2456.3,2455.6,1.46833]
[1730730985949,0.40739,2456.0,2455.7,1.01859]
[1730730986238,0.40735,2456.2,2456.0,0.40737]
[1730730986443,44.0078,2456.3,2455.6,0.4497]
[1730730986444,0.40739,2456.0,2455.9,0.40739]
[1730730986829,45.02615,2456.3,2455.6,0.4497]
[1730730987035,0.40741,2455.9,2455.8,0.40741]
[1730730988343,0.40743,2455.8,2455.6,0.4497]
[1730730988538,1.01839,2456.2,2455.6,0.4497]
[1730730988938,0.40742,2455.8,2455.7,0.40743]
[1730730989335,0.40741,2455.9,2455.8,0.40741]
[1730730989539,44.0078,2456.3,2455.6,0.4497]
[1730730989731,3.2078,2456.3,2456.2,0.40735]
[1730730989937,3.2078,2456.7,2456.4,0.40731]
[1730730990131,3.61508,2456.7,2456.6,0.40729]
[1730730990535,0.40729,2456.6,2456.5,0.40729]
[1730730990847,0.4073,2456.6,2456.5,0.40729]
[1730730991235,0.4073,2456.6,2456.3,1.01834]
[1730730991236,0.40734,2456.4,2456.3,0.40732]
[1730730991545,0.40734,2456.3,2456.2,0.86625]
[1730730992235,3.2078,2456.4,2455.8,1.88475]
[1730730992439,0.4074,2455.9,2455.8,0.8372]
[1730730993042,0.40743,2455.8,2455.7,0.40743]
[1730730993237,0.40742,2455.8,2455.7,0.40743]
[1730730993630,0.40741,2455.9,2455.8,0.40741]
[1730730993838,41.20741,2455.9,2455.8,0.40741]
[1730730994239,0.40743,2455.8,2455.7,0.40743]
[1730730994532,40.8,2455.9,2455.6,0.4515]
[1730730994735,40.8,2455.9,2455.8,0.40742]
[1730730995137,3.2078,2456.7,2455.8,0.40742]
[1730730995138,0.40731,2456.5,2455.8,7.2798]
[1730730995329,3.2078,2456.7,2456.3,0.40733]
[1730730995330,0.40733,2456.4,2456.3,0.40733]
[1730730995533,0.40735,2456.2,2456.1,0.4332]
[1730730995740,0.40736,2456.2,2456.1,0.40736]
[1730730996040,0.40739,2456.0,2455.9,0.40739]
[1730730996248,0.40741,2455.9,2455.8,0.40741]
[1730730996444,0.40741,2455.9,2455.8,0.40742]
[1730730996639,0.4074,2456.0,2455.9,0.4074]
[1730730996952,0.40742,2455.9,2455.8,0.40741]
[1730730997142,3.61519,2456.1,2456.0,0.40739]
[1730730997343,0.40741,2455.9,2455.8,0.40742]
[1730730997739,0.40739,2456.0,2455.9,0.40739]
[1730730997940,3.61518,2456.1,2456.0,0.40739]
[1730730998144,3.2078,2456.1,2456.0,0.40739]
[1730730998344,3.61517,2456.1,2456.0,0.40739]
[1730730998943,0.4074,2456.0,2455.9,0.40739]
[1730730999249,3.61518,2456.1,2456.0,0.40739]
[1730731000161,3.2078,2456.1,2455.7,1.06052896]
[1730731000342,3.2078,2455.8,2455.3,2.6449655]